bitfinex/quotes_BTCUSD_20241009
["timestamp","ask_amount","ask_price","bid_price","bid_amount"]
[1728455816728,0.16879459,62470.0,62469.0,0.241301]
[1728455817157,0.16879459,62470.0,62469.0,0.238301]
[1728455817451,0.16879459,62470.0,62469.0,0.076222]
[1728455817639,0.16879459,62470.0,62469.0,0.077222]
[1728455818304,0.16879459,62470.0,62469.0,0.237301]
[1728455818940,0.16979459,62470.0,62469.0,0.237301]
[1728455819789,0.16979459,62470.0,62469.0,0.077222]
[1728455820012,0.16979459,62470.0,62469.0,0.237301]
[1728455820222,0.16979459,62470.0,62469.0,0.077222]
[1728455820640,0.16979459,62470.0,62469.0,0.237301]
[1728455820875,0.16979459,62470.0,62469.0,0.30826815]
[1728455821293,0.15641344,62470.0,62469.0,0.30826815]
[1728455821909,0.1697927,62470.0,62469.0,0.30826815]
[1728455822044,0.15641344,62470.0,62469.0,0.30826815]
[1728455822456,0.001,62470.0,62469.0,0.30826815]
[1728455822684,0.001,62470.0,62469.0,0.43336815]
[1728455825355,0.02509198,62475.0,62474.0,0.160066]
[1728455825566,0.02509198,62475.0,62474.0,0.55049947]
[1728455826457,0.02909198,62475.0,62474.0,0.48749689]
[1728455827152,0.02509198,62475.0,62474.0,0.48949689]
[1728455827820,0.02509198,62475.0,62474.0,0.49249689]
[1728455828042,0.02509198,62475.0,62474.0,0.56346404]
[1728455828255,0.02509198,62475.0,62474.0,0.56146404]
[1728455828477,0.02509198,62475.0,62474.0,0.62447172]
[1728455828682,0.03109198,62475.0,62474.0,0.62447172]
[1728455829094,0.03109198,62475.0,62474.0,0.62147172]
[1728455829505,0.02509198,62475.0,62474.0,0.62147172]
[1728455829719,0.02909198,62475.0,62474.0,0.62147172]
[1728455829925,0.03409198,62475.0,62474.0,0.62147172]
[1728455830344,0.03009198,62475.0,62474.0,0.62147172]
[1728455830554,0.03309198,62475.0,62474.0,0.62147172]
[1728455830989,0.03309198,62475.0,62474.0,0.62347172]
[1728455831227,0.03309198,62475.0,62474.0,0.62147172]
[1728455831228,0.008,62475.0,62474.0,0.62147172]
[1728455831701,0.003,62475.0,62474.0,0.62147172]
[1728455831911,0.004,62475.0,62474.0,0.62347172]
[1728455832121,0.001644,62490.0,62486.0,0.358235]
[1728455832404,0.001644,62490.0,62486.0,0.56061995]
[1728455833520,0.002644,62487.0,62486.0,0.56061995]
[1728455833957,0.001644,62487.0,62486.0,0.56061995]
[1728455834376,0.02673002,62487.0,62486.0,0.56061995]
[1728455834793,0.02873002,62487.0,62486.0,0.56061995]
[1728455837424,0.003644,62487.0,62486.0,0.56061995]
[1728455839080,0.02872943,62487.0,62486.0,0.56061995]
[1728455839283,0.02872943,62487.0,62486.0,0.40058495]
[1728455839492,0.04205647,62487.0,62486.0,0.40058495]
[1728455839766,0.04205647,62487.0,62486.0,0.56061995]
[1728455841054,0.04005647,62487.0,62486.0,0.56061995]
[1728455841454,0.04205647,62487.0,62486.0,0.56061995]
[1728455841669,0.01697104,62487.0,62486.0,0.56061995]
[1728455843528,0.01697104,62487.0,62486.0,0.40058495]
[1728455843967,0.01697104,62487.0,62486.0,0.56061995]
[1728455844540,0.04205705,62487.0,62486.0,0.56061995]
[1728455845893,0.04205705,62487.0,62486.0,0.40058495]
[1728455846347,0.04205705,62487.0,62486.0,0.56061995]
[1728455847411,0.01697104,62487.0,62486.0,0.56061995]
[1728455847641,0.27238448,62487.0,62486.0,0.0753]
[1728455847839,0.43241748,62487.0,62486.0,0.0753]
[1728455849434,0.27238448,62487.0,62486.0,0.0753]
[1728455850452,0.29747078,62487.0,62486.0,0.0753]
[1728455850687,0.29747078,62487.0,62486.0,0.19551996]
[1728455851547,0.27238448,62487.0,62486.0,0.19551996]
[1728455853379,0.27238448,62487.0,62486.0,0.35555496]
[1728455854006,0.27238448,62487.0,62486.0,0.19551996]
[1728455854439,0.27238448,62487.0,62486.0,0.25847488]
[1728455858221,0.43241748,62487.0,62486.0,0.25847488]
[1728455858443,0.43241748,62487.0,62486.0,0.0753]
[1728455858444,0.27238448,62487.0,62486.0,0.0753]
[1728455860028,0.27238448,62487.0,62486.0,0.12910169]
[1728455860464,0.297471,62487.0,62486.0,0.12910169]
[1728455860690,0.27238448,62487.0,62486.0,0.12910169]
[1728455863192,0.32007994,62487.0,62486.0,0.12910169]
[1728455863621,0.34516645,62487.0,62486.0,0.12910169]
[1728455865341,0.36905625,62487.0,62486.0,0.12910169]
[1728455867345,0.34396974,62487.0,62486.0,0.12910169]
[1728455867802,0.36918261,62487.0,62486.0,0.12910169]
[1728455868546,0.47411049,62487.0,62486.0,0.12910169]
[1728455869727,0.59377002,62487.0,62486.0,0.12910169]
[1728455870246,0.59377002,62487.0,62486.0,0.0753]
[1728455871409,0.47411049,62487.0,62486.0,0.0753]
[1728455871877,0.44902394,62487.0,62486.0,0.0753]
[1728455873041,0.44902394,62487.0,62486.0,0.076121]
[1728455873463,0.60905694,62487.0,62486.0,0.076121]
[1728455873936,0.44902394,62487.0,62486.0,0.076121]
[1728455874569,0.44902394,62487.0,62486.0,0.19633761]
[1728455874779,0.47411062,62487.0,62486.0,0.19633761]
[1728455875853,0.47433501,62487.0,62486.0,0.19633761]
[1728455877391,0.63436801,62487.0,62486.0,0.24392587]
[1728455877605,0.47441502,62487.0,62486.0,0.24392587]
[1728455877822,0.63444802,62487.0,62486.0,0.24392587]
[1728455878035,0.47441502,62487.0,62486.0,0.24392587]
[1728455878519,0.63444802,62487.0,62486.0,0.24392587]
[1728455880558,0.47441502,62487.0,62486.0,0.24392587]
[1728455881022,0.47441727,62487.0,62486.0,0.24392587]
[1728455881490,0.77832246,62487.0,62486.0,0.24392587]
[1728455881716,0.61828946,62487.0,62486.0,0.24392587]
[1728455882157,0.62242515,62487.0,62486.0,0.24392587]
[1728455882572,0.78245815,62487.0,62486.0,0.24392587]
[1728455882788,0.47855296,62487.0,62486.0,0.24392587]
[1728455884287,0.45346628,62487.0,62486.0,0.24392587]
[1728455884929,0.75737147,62487.0,62486.0,0.24392587]
[1728455885142,0.61349928,62487.0,62486.0,0.24392587]
[1728455885808,0.45348794,62487.0,62486.0,0.24392587]
[1728455887204,0.47857456,62487.0,62486.0,0.24392587]
[1728455887657,0.47857456,62487.0,62486.0,0.076121]
[1728455887658,0.63860756,62487.0,62486.0,0.076121]
[1728455888285,0.61352094,62487.0,62486.0,0.076121]
[1728455888712,0.62850861,62487.0,62486.0,0.076121]
[1728455889324,0.62850893,62487.0,62486.0,0.076121]
[1728455889748,0.61352094,62487.0,62486.0,0.076121]
[1728455890170,0.62851262,62487.0,62486.0,0.076121]
[1728455891091,0.62851262,62487.0,62486.0,0.19633761]
[1728455891328,0.65359922,62487.0,62486.0,0.19633761]
[1728455891957,0.65359922,62487.0,62486.0,0.24392607]
[1728455893109,0.65359922,62487.0,62486.0,0.19633761]
[1728455894648,0.65359922,62487.0,62486.0,0.076121]
[1728455895537,0.65364272,62487.0,62486.0,0.000821]
[1728455905125,0.65364864,62487.0,62486.0,0.000821]
[1728455906161,0.79757762,62487.0,62486.0,0.000821]
[1728455910133,0.94145451,62487.0,62486.0,0.000821]
[1728455910350,0.94145451,62487.0,62482.0,0.35288261]
[1728455910566,0.34747948,62486.0,62483.0,0.12021661]
[1728455910781,0.19206601,62485.0,62483.0,0.12021661]
[1728455910999,0.34747931,62484.0,62483.0,0.12021661]
[1728455911671,0.36494528,62484.0,62483.0,0.12021661]
[1728455912318,0.36494528,62484.0,62483.0,0.28025961]
[1728455912555,0.36494528,62484.0,62483.0,0.40535961]
[1728455913441,0.36494528,62484.0,62483.0,0.40735961]
[1728455913658,0.36494528,62484.0,62483.0,0.40535961]
[1728455913873,0.3549536,62484.0,62483.0,0.40535961]
[1728455914278,0.3549536,62484.0,62483.0,0.285143]
[1728455914479,0.3549536,62484.0,62483.0,0.40235961]
[1728455914707,0.3579536,62484.0,62483.0,0.40235961]
[1728455914904,0.37294626,62484.0,62483.0,0.40235961]
[1728455915124,0.19587207,62484.0,62483.0,0.40235961]
[1728455915336,0.19287207,62484.0,62483.0,0.40235961]
[1728455915557,0.19587209,62484.0,62483.0,0.40235961]
[1728455915761,0.19087209,62484.0,62483.0,0.40235961]
[1728455915968,0.19587209,62484.0,62483.0,0.40235961]
[1728455918115,0.18087941,62484.0,62483.0,0.40235961]
[1728455918554,0.357956,62484.0,62483.0,0.40235961]
[1728455918980,0.354956,62484.0,62483.0,0.40235961]
[1728455919496,0.352956,62484.0,62483.0,0.40235961]
[1728455919703,0.357956,62484.0,62483.0,0.40235961]
[1728455919913,0.357956,62484.0,62483.0,0.40318061]
[1728455920538,0.35795549,62484.0,62483.0,0.24313761]
[1728455920977,0.35795549,62484.0,62483.0,0.40318061]
[1728455931747,0.35795549,62484.0,62483.0,0.24313761]
[1728455932557,0.35959749,62484.0,62483.0,0.24313761]
[1728455936030,0.35964014,62484.0,62483.0,0.24313761]
[1728455940904,0.35964014,62484.0,62483.0,0.40318061]
[1728455942063,0.35964014,62484.0,62483.0,0.24313761]
[1728455943225,0.37464499,62484.0,62483.0,0.24313761]
[1728455943600,0.37475976,62484.0,62483.0,0.24313761]
[1728455945810,0.35975491,62484.0,62483.0,0.24313761]
[1728455946045,0.37475712,62484.0,62483.0,0.24313761]
[1728455946671,0.37475712,62484.0,62483.0,0.40318061]
[1728455948965,0.21934368,62484.0,62483.0,0.48248061]
[1728455952239,0.21934368,62484.0,62483.0,0.362264]
[1728455952468,0.20434147,62484.0,62483.0,0.32243761]
[1728455952721,0.2193424,62484.0,62483.0,0.32243761]
[1728455952970,0.2193424,62484.0,62483.0,0.48248061]
[1728455953447,0.37475584,62484.0,62483.0,0.32243761]
[1728455955883,0.37475359,62484.0,62483.0,0.32243761]
[1728455958099,0.19752009,62484.0,62483.0,0.32243761]
[1728455958311,0.37469376,62484.0,62483.0,0.32243761]
[1728455958664,0.37469376,62484.0,62483.0,0.20033761]
[1728455962445,0.35969508,62484.0,62483.0,0.20033761]
[1728455962672,0.37469355,62484.0,62483.0,0.20033761]
[1728455965943,0.53473355,62484.0,62483.0,0.20033761]
[1728455966399,0.67872115,62484.0,62483.0,0.20033761]
[1728455966550,0.53473355,62484.0,62483.0,0.20033761]
[1728455966946,0.37469355,62484.0,62483.0,0.20033761]
[1728455967983,0.53473355,62484.0,62483.0,0.080121]
[1728455968365,0.37469355,62484.0,62483.0,0.080121]
[1728455969358,0.3746892,62484.0,62483.0,0.080121]
[1728455970793,0.5347292,62484.0,62483.0,0.000821]
[1728455971005,0.78774395,62484.0,62483.0,0.000821]
[1728455971244,1.03063131,62484.0,62483.0,0.000821]
[1728455971437,1.27866672,62484.0,62483.0,0.000821]
[1728455971642,1.11667936,62484.0,62483.0,0.000821]
[1728455971840,1.10867936,62484.0,62483.0,0.000821]
[1728455972261,1.11867936,62484.0,62483.0,0.001821]
[1728455972463,1.11867936,62484.0,62483.0,0.000821]
[1728455972687,1.032436,62484.0,62483.0,0.000821]
[1728455972888,1.046436,62484.0,62483.0,0.001821]
[1728455973448,1.29047141,62484.0,62483.0,0.001821]
[1728455973662,1.20957141,62484.0,62483.0,0.001821]
[1728455973863,1.22245666,62484.0,62483.0,0.002821]
[1728455974067,0.95442125,62484.0,62483.0,0.001821]
[1728455974298,0.94142125,62484.0,62483.0,0.000821]
[1728455974505,0.79361246,62484.0,62483.0,0.000821]
[1728455974709,0.79361246,62484.0,62483.0,0.001821]
[1728455975138,0.80761246,62484.0,62483.0,0.001821]
[1728455975542,0.80772762,62484.0,62483.0,0.001821]
[1728455975769,0.8328172,62484.0,62483.0,0.001821]
[1728455976405,0.95095261,62484.0,62483.0,0.001821]
[1728455976816,0.7029172,62484.0,62483.0,0.001821]
[1728455977440,0.70259904,62484.0,62483.0,0.001821]
[1728455978474,0.83299904,62484.0,62483.0,0.001821]
[1728455978727,1.08059676,62484.0,62483.0,0.001821]
[1728455979281,1.05550718,62484.0,62483.0,0.001821]
[1728455979495,0.80790946,62484.0,62483.0,0.001821]
[1728455979905,0.8077943,62484.0,62483.0,0.001821]
[1728455981170,0.96949077,62484.0,62483.0,0.001821]
[1728455981373,0.8077943,62484.0,62483.0,0.001821]
[1728455982010,0.8079096,62484.0,62483.0,0.001821]
[1728455982432,0.80780028,62484.0,62483.0,0.001821]
[1728455983467,1.08033561,62484.0,62483.0,0.001821]
[1728455984058,0.94993561,62484.0,62483.0,0.001821]
[1728455984476,0.70249095,62484.0,62483.0,0.001821]
[1728455984689,0.68739827,62484.0,62483.0,0.001821]
[1728455985964,0.70235669,62484.0,62483.0,0.001821]
[1728455987262,0.67726602,62484.0,62483.0,0.001821]
[1728455987470,0.6623076,62484.0,62483.0,0.001821]
[1728455988136,0.68739742,62484.0,62483.0,0.001821]
[1728455988621,0.70235578,62484.0,62483.0,0.001821]
[1728455989689,0.68739742,62484.0,62483.0,0.001821]
[1728455989893,0.70235602,62484.0,62483.0,0.001821]
[1728455991999,0.68739742,62484.0,62483.0,0.001821]
[1728455992267,0.87903175,62484.0,62483.0,0.001821]
[1728455992495,0.70228556,62484.0,62483.0,0.001821]
[1728455995437,0.70229104,62484.0,62483.0,0.001821]
[1728455996374,0.7022828,62484.0,62483.0,0.001821]
[1728455998494,0.68731732,62484.0,62483.0,0.001821]
[1728455998714,0.70229331,62484.0,62483.0,0.001821]
[1728455999975,0.94962584,62484.0,62483.0,0.001821]
[1728456000205,0.70229331,62484.0,62483.0,0.001821]
[1728456003732,0.70229331,62484.0,62483.0,0.0228652]
[1728456003965,0.51925331,62484.0,62483.0,0.33093761]
[1728456004921,0.49027732,62484.0,62483.0,0.33093761]
[1728456005176,0.30551561,62484.0,62483.0,0.49098061]
[1728456005424,0.21777406,62484.0,62483.0,0.49098061]
[1728456005923,0.20377406,62484.0,62483.0,0.48998061]
[1728456006187,0.21777406,62484.0,62483.0,0.49098061]
[1728456006678,0.20377406,62484.0,62483.0,0.48998061]
[1728456007160,0.21077406,62484.0,62483.0,0.49098061]
[1728456007871,0.30651561,62484.0,62483.0,0.49098061]
[1728456008125,0.21077406,62484.0,62483.0,0.49098061]
[1728456008355,0.23586094,62484.0,62483.0,0.49098061]
[1728456008592,0.33160249,62484.0,62483.0,0.49098061]
[1728456009272,0.33160249,62484.0,62483.0,0.33093761]
[1728456009495,0.23586094,62484.0,62483.0,0.210721]
[1728456009726,0.33160249,62484.0,62483.0,0.33093761]
[1728456010206,0.33158473,62484.0,62483.0,0.33093761]
[1728456010690,0.23586502,62484.0,62483.0,0.210721]
[1728456010938,0.23586502,62484.0,62483.0,0.33093761]
[1728456011163,0.25082213,62484.0,62483.0,0.33093761]
[1728456012527,0.22573525,62484.0,62483.0,0.33093761]
[1728456015628,0.56627582,62484.0,62483.0,0.210721]
[1728456015886,0.68592546,62484.0,62483.0,0.210721]
[1728456017256,0.52588546,62484.0,62483.0,0.33093761]
[1728456017473,0.68592213,62484.0,62483.0,0.33093761]
[1728456017900,0.52588213,62484.0,62483.0,0.33093761]
[1728456018124,0.51092835,62484.0,62483.0,0.33093761]
[1728456018365,0.51092835,62484.0,62483.0,0.38011867]
[1728456019445,0.39127871,62484.0,62483.0,0.38011867]
[1728456019661,0.39127871,62484.0,62483.0,0.33093761]
[1728456020518,0.46190048,62484.0,62483.0,0.33093761]
[1728456023612,0.48698776,62484.0,62483.0,0.33093761]
[1728456024935,0.48694718,62484.0,62483.0,0.33093761]
[1728456030383,0.64698718,62484.0,62483.0,0.33093761]
[1728456030608,0.55128553,62484.0,62483.0,0.33093761]
[1728456031976,0.54586678,62484.0,62483.0,0.33093761]
[1728456032187,0.38582678,62484.0,62483.0,0.33093761]
[1728456032395,0.66550776,62484.0,62483.0,0.33093761]
[1728456034281,0.50546776,62484.0,62483.0,0.33093761]
[1728456034697,0.50552063,62484.0,62483.0,0.33093761]
[1728456034883,0.66556063,62484.0,62483.0,0.33093761]
[1728456035084,0.66556063,62484.0,62483.0,0.210721]
[1728456037153,0.50552063,62484.0,62483.0,0.210721]
[1728456038657,0.3858666,62484.0,62483.0,0.210721]
[1728456038879,0.50554579,62484.0,62483.0,0.210721]
[1728456039075,0.3858666,62484.0,62483.0,0.210721]
[1728456039300,0.50554564,62484.0,62483.0,0.210721]
[1728456039541,0.3858666,62484.0,62483.0,0.210721]
[1728456048563,0.5459066,62484.0,62483.0,0.210721]
[1728456049058,0.54602196,62484.0,62483.0,0.210721]
[1728456049571,0.69012378,62484.0,62483.0,0.210721]
[1728456053258,0.70510691,62484.0,62483.0,0.210721]
[1728456053709,0.56129029,62484.0,62483.0,0.210721]
[1728456054116,0.70511952,62484.0,62483.0,0.210721]
[1728456054295,0.69013639,62484.0,62483.0,0.210721]
[1728456055448,0.70511806,62484.0,62483.0,0.210721]
[1728456056415,0.38432697,62484.0,62483.0,0.210721]
[1728456057011,0.70511308,62484.0,62483.0,0.210721]
[1728456058229,0.70511308,62484.0,62483.0,0.001821]
[1728456058461,0.38432697,62484.0,62483.0,0.001821]
[1728456058664,0.35923969,62484.0,62483.0,0.001821]
[1728456059842,0.53619876,62484.0,62483.0,0.001821]
[1728456060276,0.35923969,62484.0,62483.0,0.001821]
[1728456060502,0.34425802,62484.0,62483.0,0.001821]
[1728456060725,0.35923699,62484.0,62483.0,0.001821]
[1728456061746,0.3843259,62484.0,62483.0,0.001821]
[1728456061954,0.35923699,62484.0,62483.0,0.001821]
[1728456062281,0.38432575,62484.0,62483.0,0.001821]
[1728456067197,0.38432575,62484.0,62483.0,0.01410686]
[1728456067688,0.22428575,62484.0,62483.0,0.25292347]
[1728456067920,0.22417039,62484.0,62483.0,0.32962347]
[1728456068411,0.05377798,62484.0,62483.0,0.48966647]
[1728456068616,0.04173076,62484.0,62483.0,0.48966647]
[1728456070197,0.21857045,62484.0,62483.0,0.48966647]
[1728456070424,0.23160487,62484.0,62483.0,0.48966647]
[1728456070650,0.15057675,62484.0,62483.0,0.48966647]
[1728456071118,0.20651611,62484.0,62483.0,0.48966647]
[1728456071364,0.02967642,62484.0,62483.0,0.48966647]
[1728456071805,0.10152448,62484.0,62483.0,0.48966647]
[1728456072267,0.10151666,62484.0,62483.0,0.48966647]
[1728456074229,0.12660344,62484.0,62483.0,0.48966647]
[1728456076306,0.0547632,62484.0,62483.0,0.48966647]
[1728456077433,0.02967642,62484.0,62483.0,0.48966647]
[1728456078382,0.016642,62484.0,62483.0,0.48966647]
[1728456078801,0.001642,62484.0,62483.0,0.48866647]
[1728456079008,0.002642,62484.0,62483.0,0.48866647]
[1728456079644,0.003642,62484.0,62483.0,0.49066647]
[1728456080955,0.004642,62484.0,62483.0,0.49766647]
[1728456082784,0.004642,62484.0,62483.0,0.50266647]
[1728456088270,0.004642,62484.0,62483.0,0.38244986]
[1728456088490,0.004642,62484.0,62483.0,0.50266647]
[1728456089142,0.004642,62484.0,62483.0,0.49766647]
[1728456095970,0.004642,62484.0,62483.0,0.37744986]
[1728456096184,0.004642,62484.0,62483.0,0.49766647]
[1728456112934,0.004642,62484.0,62483.0,0.50266647]
[1728456119229,0.004642,62484.0,62483.0,0.38244986]
[1728456119457,0.004642,62484.0,62483.0,0.50266647]
[1728456119667,0.004642,62484.0,62483.0,0.49766647]
[1728456125889,0.02259023,62484.0,62483.0,0.49766647]
[1728456133418,0.07043677,62484.0,62483.0,0.49766647]
[1728456133827,0.02259023,62484.0,62483.0,0.49766647]
[1728456133996,0.07043677,62484.0,62483.0,0.49766647]
[1728456135248,0.02259023,62484.0,62483.0,0.49766647]
[1728456138271,0.004642,62484.0,62483.0,0.49766647]
[1728456147021,0.02258871,62484.0,62483.0,0.49766647]
[1728456147237,0.004642,62484.0,62483.0,0.49766647]
[1728456161624,0.0249759,62484.0,62483.0,0.49766647]
[1728456163331,0.07286703,62484.0,62483.0,0.49766647]
[1728456163772,0.0249759,62484.0,62483.0,0.49766647]
[1728456165907,0.09678897,62484.0,62483.0,0.49766647]
[1728456166867,0.09681086,62484.0,62483.0,0.49766647]
[1728456169597,0.0249759,62484.0,62483.0,0.49766647]
[1728456170006,0.09681086,62484.0,62483.0,0.49766647]
[1728456174365,0.09681086,62484.0,62483.0,0.37744986]
[1728456174579,0.09681086,62484.0,62483.0,0.49766647]
[1728456176496,0.09680183,62484.0,62483.0,0.49766647]
[1728456180920,0.0249759,62484.0,62483.0,0.49766647]
[1728456181146,0.0728615,62484.0,62483.0,0.49766647]
[1728456181584,0.0249759,62484.0,62483.0,0.49766647]
[1728456182253,0.07286068,62484.0,62483.0,0.49766647]
[1728456183572,0.0249759,62484.0,62483.0,0.49766647]
[1728456185320,0.0247338,62484.0,62483.0,0.49766647]
[1728456189470,0.07261858,62484.0,62483.0,0.49766647]
[1728456189725,0.0247338,62484.0,62483.0,0.49766647]
[1728456191492,0.07262213,62484.0,62483.0,0.49766647]
[1728456193247,0.07262213,62484.0,62483.0,0.02210686]
[1728456193515,0.27603219,62484.0,62483.0,0.02210686]
[1728456193717,0.27603219,62484.0,62483.0,0.48428061]
[1728456193718,0.29725032,62484.0,62483.0,0.48428061]
[1728456193933,0.0726192,62484.0,62483.0,0.48428061]
[1728456194147,0.09655932,62484.0,62483.0,0.48428061]
[1728456194367,0.0247338,62484.0,62483.0,0.48428061]
[1728456196578,0.0247338,62484.0,62483.0,0.364064]
[1728456196806,0.0247338,62484.0,62483.0,0.48428061]
[1728456197826,0.0726192,62484.0,62483.0,0.48428061]
[1728456198237,0.01863831,62484.0,62483.0,0.48428061]
[1728456199762,0.06653226,62484.0,62483.0,0.48428061]
[1728456204985,0.06653226,62484.0,62483.0,0.364064]
[1728456205242,0.19568235,62484.0,62483.0,0.29008061]
[1728456205692,0.29147025,62484.0,62483.0,0.29008061]
[1728456207137,0.19568235,62484.0,62483.0,0.29008061]
[1728456207346,0.01863831,62484.0,62483.0,0.29008061]
[1728456207574,0.0043999,62484.0,62483.0,0.29008061]
[1728456208493,0.18141941,62484.0,62483.0,0.29008061]
[1728456208950,0.19565702,62484.0,62483.0,0.29008061]
[1728456209174,0.29144492,62484.0,62483.0,0.29008061]
[1728456209627,0.19565702,62484.0,62483.0,0.29008061]
[1728456211350,0.01863751,62484.0,62483.0,0.29008061]
[1728456211794,0.0043999,62484.0,62483.0,0.29008061]
[1728456212289,0.19560384,62484.0,62483.0,0.29008061]
[1728456212558,0.29139174,62484.0,62483.0,0.009821]
[1728456212849,0.19571896,62484.0,62483.0,0.009821]
[1728456213109,0.31545383,62484.0,62483.0,0.009821]
[1728456213809,0.31545383,62484.0,62483.0,0.13003761]
[1728456214274,0.31545383,62484.0,62483.0,0.19113817]
[1728456214749,0.47549383,62484.0,62483.0,0.19113817]
[1728456214974,0.31545383,62484.0,62483.0,0.13003761]
[1728456215955,0.47086727,62484.0,62483.0,0.13003761]
[1728456216181,0.63090727,62484.0,62483.0,0.13003761]
[1728456218517,0.5111724,62484.0,62483.0,0.13003761]
[1728456218772,0.5111724,62484.0,62483.0,0.15912847]
[1728456221304,0.60697466,62484.0,62483.0,0.15912847]
[1728456223848,0.33420775,62484.0,62483.0,0.15912847]
[1728456224063,0.60681476,62484.0,62483.0,0.15912847]
[1728456227328,0.42999912,62484.0,62483.0,0.15912847]
[1728456227567,0.60680155,62484.0,62483.0,0.15912847]
[1728456228883,0.63074223,62484.0,62483.0,0.15912847]
[1728456230649,0.51100591,62484.0,62483.0,0.15912847]
[1728456230853,0.63073496,62484.0,62483.0,0.15912847]
[1728456231065,0.63073496,62484.0,62483.0,0.13003761]
[1728456231716,0.62973496,62484.0,62483.0,0.12303761]
[1728456231966,0.62973496,62484.0,62483.0,0.12103761]
[1728456232377,0.63273496,62484.0,62483.0,0.12103761]
[1728456235009,0.63273496,62484.0,62483.0,0.14922867]
[1728456238645,0.63270826,62484.0,62483.0,0.14922867]
[1728456246517,0.47266826,62484.0,62483.0,0.14922867]
[1728456248232,0.35294566,62484.0,62483.0,0.14922867]
[1728456248798,0.4726317,62484.0,62483.0,0.14922867]
[1728456249205,0.35294566,62484.0,62483.0,0.26872867]
[1728456251721,0.35283054,62484.0,62483.0,0.26872867]
[1728456251942,0.19741818,62484.0,62483.0,0.42877167]
[1728456252198,0.02063919,62484.0,62483.0,0.42877167]
[1728456252462,0.11642375,62484.0,62483.0,0.51127167]
[1728456252908,0.29320274,62484.0,62483.0,0.51127167]
[1728456256351,0.06853819,62484.0,62483.0,0.51127167]
[1728456256784,0.06853386,62484.0,62483.0,0.51127167]
[1728456258305,0.02063919,62484.0,62483.0,0.51127167]
[1728456261494,0.02063919,62484.0,62483.0,0.51926525]
[1728456261827,0.0063999,62484.0,62483.0,0.51926525]
[1728456262040,0.0063999,62484.0,62483.0,0.51127167]
[1728456262238,0.02328084,62484.0,62483.0,0.51127167]
[1728456266950,0.0063999,62484.0,62483.0,0.51127167]
[1728456267175,0.02328084,62484.0,62483.0,0.51127167]
[1728456267384,0.0063999,62484.0,62483.0,0.51127167]
[1728456267620,0.02328084,62484.0,62483.0,0.51127167]
[1728456274896,0.07113632,62484.0,62483.0,0.51127167]
[1728456276183,0.02328084,62484.0,62483.0,0.51127167]
[1728456276841,0.07114378,62484.0,62483.0,0.51127167]
[1728456277277,0.02328084,62484.0,62483.0,0.51127167]
[1728456281630,0.02328084,62484.0,62483.0,0.35122867]
[1728456281869,0.02328084,62484.0,62483.0,0.14922867]
[1728456281870,0.09507976,62484.0,62483.0,0.14922867]
[1728456282078,0.20008582,62484.0,62483.0,0.12103761]
[1728456282217,0.29581771,62484.0,62483.0,0.12103761]
[1728456282655,0.45123115,62484.0,62483.0,0.12103761]
[1728456282854,0.45111577,62484.0,62483.0,0.12103761]
[1728456283107,0.61115577,62484.0,62483.0,0.12103761]
[1728456283642,0.61127115,62484.0,62483.0,0.12103761]
[1728456284321,0.51553926,62484.0,62483.0,0.12103761]
[1728456284540,0.35549926,62484.0,62483.0,0.16947867]
[1728456285097,0.41065004,62484.0,62483.0,0.16947867]
[1728456285332,0.33884966,62484.0,62483.0,0.16947867]
[1728456285537,0.51554715,62484.0,62483.0,0.16947867]
[1728456285766,0.41065145,62484.0,62483.0,0.16947867]
[1728456286262,0.25061145,62484.0,62483.0,0.16947867]
[1728456286687,0.33884966,62484.0,62483.0,0.16947867]
[1728456287160,0.61128164,62484.0,62483.0,0.16947867]
[1728456291159,0.61130431,62484.0,62483.0,0.16947867]
[1728456291819,0.35552184,62484.0,62483.0,0.16947867]
[1728456293422,0.09509544,62484.0,62483.0,0.52272167]
[1728456293658,0.02328084,62484.0,62483.0,0.52272167]
[1728456294092,0.07115888,62484.0,62483.0,0.52272167]
[1728456296078,0.07116237,62484.0,62483.0,0.52272167]
[1728456297979,0.07116583,62484.0,62483.0,0.52272167]
[1728456300779,0.02328084,62484.0,62483.0,0.52272167]
[1728456301291,0.07182772,62488.0,62487.0,0.160033]
[1728456301524,0.07182772,62488.0,62485.0,0.1191]
[1728456301525,0.001644,62490.0,62489.0,0.355128]
[1728456301756,0.001644,62490.0,62489.0,0.47534461]
[1728456303091,0.001644,62490.0,62489.0,0.47834461]
[1728456304179,0.005644,62491.0,62490.0,0.160025]
[1728456304397,0.07181978,62501.0,62500.0,0.16]
[1728456304615,0.09575971,62502.0,62501.0,0.159997]
[1728456304616,0.07181978,62502.0,62501.0,0.159997]
[1728456304850,0.07181978,62504.0,62501.0,0.16188908]
[1728456305072,0.07181978,62504.0,62503.0,0.159992]
[1728456305580,0.07181978,62505.0,62501.0,0.48188308]
[1728456305818,0.07181978,62505.0,62504.0,0.28020561]
[1728456306482,0.25541344,62506.0,62504.0,0.12021661]
[1728456306483,0.32723322,62506.0,62504.0,0.12021661]
[1728456307129,0.32723322,62506.0,62504.0,0.12121661]
[1728456307386,0.021,62505.0,62504.0,0.12221661]
[1728456307588,0.180987,62505.0,62504.0,0.12221661]
[1728456307817,0.24292216,62505.0,62504.0,0.12121661]
[1728456308257,0.24292216,62505.0,62504.0,0.12221661]
[1728456308688,0.25571666,62505.0,62504.0,0.12121661]
[1728456308845,0.25571666,62505.0,62504.0,0.12221661]
[1728456309059,0.4111301,62505.0,62504.0,0.12221661]
[1728456309261,0.4111301,62505.0,62504.0,0.002]
[1728456309661,0.2511431,62505.0,62500.0,0.12021661]
[1728456310035,0.159997,62501.0,62500.0,0.12021661]
[1728456310258,0.160005,62498.0,62497.0,0.12021661]
[1728456310701,0.160012,62496.0,62494.0,0.12021661]
[1728456310941,0.15541344,62495.0,62494.0,0.12021661]
[1728456311169,0.17920518,62495.0,62494.0,0.12021661]
[1728456312885,0.18020518,62495.0,62494.0,0.12021661]
[1728456313093,0.18032056,62495.0,62494.0,0.12021661]
[1728456313308,0.34033256,62495.0,62494.0,0.12021661]
[1728456313517,0.34033256,62495.0,62487.0,0.28024861]
[1728456313518,0.160021,62492.0,62487.0,0.28024861]
[1728456313750,0.15541344,62492.0,62487.0,0.28024861]
[1728456313962,0.16013838,62491.0,62487.0,0.28024861]
[1728456314203,0.18391568,62491.0,62490.0,0.12021661]
[1728456314412,0.18391568,62491.0,62483.0,0.160864]
[1728456314413,0.22711218,62491.0,62483.0,0.160864]
[1728456314621,0.160031,62488.0,62484.0,0.28025661]
[1728456314831,0.160031,62488.0,62487.0,0.003]
[1728456315069,0.31544444,62488.0,62487.0,0.003]
[1728456315277,0.31544444,62488.0,62487.0,0.15990109]
[1728456315488,0.15541344,62488.0,62487.0,0.15990109]
[1728456315692,0.31544344,62488.0,62487.0,0.16190109]
[1728456316131,0.31544344,62488.0,62487.0,0.15990109]